Cogmind - Beta 10.2 @@@ ROGUE MODE // 2021.09.19 @ 22:52:31 Player: OR-2NL Result: Escaped! Performance ------------- Evolutions (9) 4500 Regions Visited (34) 6800 Robots Destroyed (196) 980 Value Destroyed (4758) 4758 Prototype IDs (95) 1900 Alien Tech Used (6) 1200 Bonus (7498) 7498 TOTAL SCORE: 27636 Bonus ------- High Alert Combat Kills 221 Follower Combat Kills 150 Aligned with FarCom 300 Met Data Miner 300 Met Imprinter 300 Met Zhirov 300 Met Warlord at Base 500 MAIN.C Attacked Warlord 500 Met Warlord at Research 2000 Win 3000 Friendly Fire -73 Cogmind --------- Core Integrity 1600/1600 Matter 217/300 Energy 43/130 System Corruption 0% Temperature Cool (4) Movement Flying (23) Location To Epsilon Eridani Parts ------- > --- POWER (1) -------- Mini Fusion Reactor > --- PROPULSION (6) --- Biomechanical Wings Biomechanical Wings Biomechanical Wings Biomechanical Wings Electron Diverter Improved Q-thruster > --- UTILITY (16) ----- Large Storage Unit Large Storage Unit Experimental Sensor Array Advanced Signal Interpreter Experimental Signal Interpreter Experimental Terrain Scanner Experimental Terrain Scan Processor Advanced Transmission Jammer Experimental Utility Shielding Layered Medium Armor Plating Advanced Hacking Suite Advanced Hacking Suite Advanced Hacking Suite Advanced Hacking Suite System Mapper Advanced System Shield > --- WEAPON (2) ------- Plasma Lance Plasma Lance > --- INVENTORY (16) --- Diametric Drive Improved Fusion Compressor Experimental Energy Well (1000) Experimental Core Analyzer Femtoactuators Advanced Reaction Control System Experimental Cloaking Device Experimental Propulsion Shielding Antimissile System Advanced Component Analysis Suite Subatomic Replicator Enhanced Nova Cannon Tiamat Missile Launcher Peak State ------------ > --- POWER ------------ Mini Fusion Reactor > --- PROPULSION ------- Biomechanical Wings Biomechanical Wings Biomechanical Wings Diametric Drive Electron Diverter Improved Q-thruster > --- UTILITY ---------- Improved Fusion Compressor Large Storage Unit Large Storage Unit Experimental Sensor Array Advanced Signal Interpreter Experimental Signal Interpreter Experimental Terrain Scanner Experimental Terrain Scan Processor Femtoactuators Advanced Transmission Jammer Advanced Hacking Suite Advanced Hacking Suite Advanced Hacking Suite Advanced Hacking Suite System Mapper Advanced System Shield > --- WEAPON ----------- Plasma Lance Plasma Lance > --- INVENTORY -------- Biomechanical Wings Experimental Energy Well Experimental Core Analyzer Advanced Reaction Control System Experimental Cloaking Device Experimental Propulsion Shielding Experimental Utility Shielding Layered Medium Armor Plating Antimissile System Advanced Component Analysis Suite Subatomic Replicator Enhanced Nova Cannon Tiamat Missile Launcher [Rating: 172] Favorites ----------- Power Mini Fusion Reactor Engine Improved Ion Engine Power Core Light Fission Core Reactor Mini Fusion Reactor Propulsion Biomechanical Wings Treads Armored Treads Wheel Compact Wheel Flight Unit Biomechanical Wings Utility Advanced Hacking Suite Device Experimental Sensor Array Storage High-capacity Storage Unit Processor Experimental Signal Interpreter Hackware Advanced Hacking Suite Protection Hardened Medium Armor Plating Artifact Phase Armor Weapon Flak Gun Energy Gun EM Pulse Gun Energy Cannon Neutron Cannon Ballistic Gun Flak Gun Launcher Long-range Missile Launcher Special Weapon Improved Plasma Cutter Slashing Weapon Power Sword Piercing Weapon Plasma Lance Special Melee Weapon Advanced Datajack Build | -11 -10 -10 -10 -9 -8 -7 -7 -7 -7 -6 -6 -6 -6 -6 -6 -5 -5 -5 -5 -5 -4 -4 -4 -4 -4 -4 -4 -3 -3 -3 -3 -2 -2 -1 ------- Run | Scr Mat Min Exi Min Mat Fac Low Low Dat Pro Fac Was Fac Low Zio Pro Fac Upp Upp War Pro Fac Was Fac Upp Upp Zhi Pro Res Qua Sec Res Tes Acc Slots Evolved 18 | . . . . . 4 2 . . . . 2 . . . . . 2 . . . . 2 . . . . . . 2 . . 2 . 2 Power . | . . . . . . . . . . . . . . . . . . . . . . . . . . . . . . . . . . . Propulsion 4 | . . . . . 1 . . . . . . . . . . . . . . . . 1 . . . . . . 2 . . . . . Utility 14 | . . . . . 3 2 . . . . 2 . . . . . 2 . . . . 1 . . . . . . . . . 2 . 2 Weapon . | . . . . . . . . . . . . . . . . . . . . . . . . . . . . . . . . . . . Parts Attached 687 | 6 48 33 2 24 106 58 5 1 20 3 39 . 17 2 5 7 33 6 6 6 3 55 3 29 11 . 3 . 43 22 28 16 23 24 Power 20 | 1 2 3 . 2 4 3 . . 1 . 1 . . . . . 1 . . . . 1 . . . . . . . . . . . 1 Engine 13 | 1 2 3 . 2 3 2 . . . . . . . . . . . . . . . . . . . . . . . . . . . . Core 5 | . . . . . 1 1 . . 1 . 1 . . . . . 1 . . . . . . . . . . . . . . . . . Reactor 2 | . . . . . . . . . . . . . . . . . . . . . . 1 . . . . . . . . . . . 1 Propulsion 221 | 2 32 26 . 17 69 34 2 . 6 . 4 . 3 . . . 1 . . 1 . 8 . 4 . . 1 . 7 . 1 1 . 2 Treads 88 | . 14 12 . 8 36 18 . . . . . . . . . . . . . . . . . . . . . . . . . . . . Leg . | . . . . . . . . . . . . . . . . . . . . . . . . . . . . . . . . . . . Wheel 94 | 2 18 14 . 9 33 16 2 . . . . . . . . . . . . . . . . . . . . . . . . . . . Hover . | . . . . . . . . . . . . . . . . . . . . . . . . . . . . . . . . . . . Flight 39 | . . . . . . . . . 6 . 4 . 3 . . . 1 . . 1 . 8 . 4 . . 1 . 7 . 1 1 . 2 Utility 249 | 1 5 . 1 . 14 7 . 1 12 1 27 . 8 2 4 4 9 3 . 5 3 23 1 10 4 . 2 . 32 15 18 11 12 14 Device 153 | . . . . . 1 . . 1 5 . 23 . 5 1 3 2 5 1 . 3 3 18 . 6 3 . 2 . 26 12 12 6 7 8 Storage 24 | 1 5 . 1 . 7 1 . . 1 . . . . . . . . . . 1 . 1 . 1 . . . . . . 3 . . 2 Processor 10 | . . . . . 2 . . . 2 . . . . . . . 1 . . . . . . . . . . . 2 . 1 1 . 1 Hackware 23 | . . . . . . 2 . . 2 1 4 . 2 1 . 1 3 1 . . . 1 . 1 . . . . 3 . . . 1 . Protection 38 | . . . . . 4 4 . . 2 . . . 1 . 1 1 . 1 . 1 . 3 1 2 1 . . . 1 2 2 4 4 3 Artifact 1 | . . . . . . . . . . . . . . . . . . . . . . . . . . . . . . 1 . . . . Weapon 197 | 2 9 4 1 5 19 14 3 . 1 2 7 . 6 . 1 3 22 3 6 . . 23 2 15 7 . . . 4 7 9 4 11 7 Energy Gun 3 | . . . . . 2 . . . . . . . . . . . . . . . . . . . . . . . . . 1 . . . Energy Cannon 59 | . . . . . 3 . 1 . . 2 2 . 3 . . 1 10 1 3 . . 9 . 6 2 . . . 2 3 4 . 4 3 Ballistic Gun 36 | 2 8 4 1 5 10 6 . . . . . . . . . . . . . . . . . . . . . . . . . . . . Ballistic Cannon . | . . . . . . . . . . . . . . . . . . . . . . . . . . . . . . . . . . . Launcher 13 | . . . . . 1 2 1 . . . . . . . 1 . 1 1 . . . . 1 2 1 . . . . . 1 . 1 . Special Weapon 50 | . . . . . . . . . . . 3 . 3 . . 1 11 1 3 . . 13 1 7 4 . . . 2 . 1 . . . Impact Weapon . | . . . . . . . . . . . . . . . . . . . . . . . . . . . . . . . . . . . Slashing Weapon 15 | . . . . . 3 3 . . . . 1 . . . . 1 . . . . . . . . . . . . . 4 2 1 . . Piercing Weapon 19 | . . . . . . 3 1 . 1 . 1 . . . . . . . . . . 1 . . . . . . . . . 3 5 4 Special Melee Weapon 2 | . 1 . . . . . . . . . . . . . . . . . . . . . . . . . . . . . . . 1 . Unidentified Prototypes 17 | . . . . . 3 . . . . . 1 . . . 1 . . . . 3 . 1 . . . . 2 . . 4 2 . . . Parts Lost 13 | . . 2 . . . 1 . . . . . . . . . . . . . . . 1 . 1 . . . . 4 . 2 2 . . Power 2 | . . 2 . . . . . . . . . . . . . . . . . . . . . . . . . . . . . . . . Propulsion 2 | . . . . . . . . . . . . . . . . . . . . . . . . 1 . . . . 1 . . . . . Utility 8 | . . . . . . 1 . . . . . . . . . . . . . . . 1 . . . . . . 3 . 1 2 . . Weapon 1 | . . . . . . . . . . . . . . . . . . . . . . . . . . . . . . . 1 . . . Highest Loss Streak 3 | . . 1 . . . 1 . . . . . . . . . . . . . . . 1 . 1 . . . . 3 . 2 2 . . Average Slot Usage (%) 97 | . 99 99 100 99 99 94 92 92 85 92 96 100 100 100 99 100 98 100 100 99 100 99 100 99 97 100 98 100 98 95 94 98 99 98 Engine 3 | . 13 13 14 13 7 3 7 7 2 . . . . . . . . . . . . . . . . . . . . . . . . . Core 2 | . . . . . 1 3 . . 2 7 6 6 6 6 6 6 4 5 5 5 5 2 . . . . . . . . . . . . Reactor 1 | . . . . . . . . . . . . . . . . . . . . . . 2 5 5 5 5 5 5 4 4 4 4 4 2 Treads 3 | . 5 4 . 5 10 9 7 7 5 . . . . . . . . . . . . . . . . . . . . . . . . . Wheel 7 | . 22 23 28 22 16 12 15 15 11 . . . . . . . . . . . . . . . . . . . . . . . . . Flight 12 | . . . . . . . . . 6 23 19 20 20 20 20 20 17 17 17 17 17 21 21 21 21 21 21 21 27 28 28 26 26 24 Device 5 | . . . . . . . . 6 8 7 6 6 5 6 5 5 5 5 5 4 5 9 10 12 10 10 9 10 7 8 8 14 16 15 Storage 15 | . 27 28 28 28 27 23 23 23 17 7 6 6 6 6 6 6 5 5 5 7 11 10 10 10 10 10 10 10 9 9 9 8 8 8 Processor 5 | . . . . . 8 7 7 7 9 8 6 6 6 6 6 6 5 5 5 5 5 5 5 5 5 5 5 5 5 9 10 7 8 11 Hackware 20 | . . . . . . 6 7 . . 21 38 40 40 40 40 40 46 47 47 45 41 35 31 32 36 36 36 36 32 28 25 21 21 24 Protection 3 | . . . . . 8 9 7 7 4 7 1 . . . . . . . . . . . 5 1 . . . . . . . 5 4 4 Ballistic Gun 7 | . 27 27 28 28 14 12 6 . . . . . . . . . . . . . . . . . . . . . . . . . . . Special Weapon 1 | . . . . . . . . . . . 3 6 5 6 6 5 4 4 2 5 5 4 4 4 2 5 5 5 . . . 2 . . Slashing Weapon 1 | . . . . . 1 . . . . . 3 6 6 6 6 6 5 5 5 5 5 2 . . . . . . . 3 1 . . . Piercing Weapon 2 | . . . . . . 1 3 7 9 7 2 . . . . . . . . . . 2 5 5 5 5 5 5 4 . . 4 7 7 Naked Turns . | . . . . . . . . . . . . . . . . . . . . . . . . . . . . . . . . . . . Heaviest Build 142 | 13 57 57 59 59 125 142 140 141 141 20 22 20 22 20 39 22 20 25 25 28 28 37 37 39 39 37 37 37 52 45 54 56 53 57 Greatest Support 61 | 26 40 40 32 40 60 60 32 32 32 20 22 22 24 24 24 24 25 25 25 29 29 38 37 39 39 39 39 38 57 57 57 61 61 61 Greatest Overweight (x) 4 | . 3 1 1 1 3 4 4 4 4 . 1 . . . 1 . . . . . . . . . . . . . . . . . . . Average Overweight (x) . | . . 1 1 1 2 3 4 4 1 . . . . . . . . . . . . . . . . . . . . . . . . . Largest Inventory Capacity 34 | 6 18 18 18 18 34 34 28 28 28 8 8 8 8 8 8 8 8 8 8 12 12 12 12 14 14 14 14 14 14 14 16 14 14 16 Average Capacity 16 | 5 17 18 18 18 28 28 28 28 21 8 8 8 8 8 8 8 8 8 8 9 12 12 12 13 14 14 14 14 14 14 14 14 14 15 Most Carried 30 | 4 18 18 18 18 29 30 28 28 28 8 8 8 8 8 8 8 8 8 8 11 10 12 12 14 14 13 14 14 14 14 14 14 14 13 Average Carried 16 | 2 14 17 17 17 27 27 28 27 18 7 7 7 7 8 8 8 7 7 7 8 10 11 11 11 13 13 13 14 13 13 11 13 13 12 Final Capacity 34 | 6 18 18 18 18 34 28 28 28 8 8 8 8 8 8 8 8 8 8 8 12 12 12 12 14 14 14 14 14 14 14 14 14 14 16 Final Carried 29 | 4 18 18 18 18 29 28 28 28 7 8 8 8 8 8 8 8 8 8 8 10 10 12 12 14 13 13 14 14 13 14 12 13 14 13 Class Distribution -------------------- 36% | Wizard-Sprinter 27% | Hauler-Mutant 9% | Mutant 8% | Wizard-Mutant 5% | Wizard-Scout 5% | Scavenger-Mutant 4% | Wizard-Ninja Dominant Class ---------------- Mutant | -10/Materials Mutant | -10/Mines Scavenger-Mutant | -10/Exiles Scavenger-Mutant | -9/Mines Hauler-Mutant | -8/Materials Hauler-Mutant | -7/Factory Hauler-Mutant | -7/Lower Caves Hauler-Mutant | -7/Lower Caves Hauler-Mutant | -7/Data Miner Hacker-Mutant | -6/Proximity Caves Wizard-Mutant | -6/Factory Wizard-Mutant | -6/Waste Wizard-Mutant | -6/Factory Wizard-Sprinter | -6/Lower Caves Wizard-Sprinter | -6/Zion Wizard-Sprinter | -5/Proximity Caves Wizard-Sprinter | -5/Factory Wizard-Sprinter | -5/Upper Caves Wizard-Sprinter | -5/Upper Caves Wizard-Sprinter | -5/Warlord Wizard-Sprinter | -4/Proximity Caves Wizard-Sprinter | -4/Factory Wizard-Sprinter | -4/Waste Wizard-Sprinter | -4/Factory Wizard-Sprinter | -4/Upper Caves Wizard-Sprinter | -4/Upper Caves Wizard-Sprinter | -4/Zhirov Wizard-Sprinter | -3/Proximity Caves Wizard-Sprinter | -3/Research Wizard-Scout | -3/Quarantine Wizard-Scout | -3/Section 7 Wizard-Sprinter | -2/Research Wizard-Ninja | -2/Testing Wizard-Ninja | -1/Access Resources | -11 -10 -10 -10 -9 -8 -7 -7 -7 -7 -6 -6 -6 -6 -6 -6 -5 -5 -5 -5 -5 -4 -4 -4 -4 -4 -4 -4 -3 -3 -3 -3 -2 -2 -1 ----------- Run | Scr Mat Min Exi Min Mat Fac Low Low Dat Pro Fac Was Fac Low Zio Pro Fac Upp Upp War Pro Fac Was Fac Upp Upp Zhi Pro Res Qua Sec Res Tes Acc Matter Collected 9684 | 260 558 638 20 318 1806 1090 23 210 160 12 433 40 60 16 142 92 290 67 68 . 61 663 105 174 227 9 . 40 380 311 331 501 99 480 Remotely . | . . . . . . . . . . . . . . . . . . . . . . . . . . . . . . . . . . . Salvage Created 9194 | . 558 274 . 444 2090 938 . 67 27 . 670 . 40 . 70 22 319 . 43 . 75 531 129 253 147 56 . . 381 218 710 520 68 544 Parts 433 | . 34 7 . 33 108 44 . 2 2 . 24 . 2 . 2 1 11 . . . 3 34 . 19 9 . . . 17 12 15 29 5 20 Haulers Intercepted 12 | . . . . . 6 . . . . . 3 . . . . . . . . . . . . . . . . . . . . 3 . . Recyclers Shooed 6 | . . 1 . 1 . . . . . . . . . . . . 1 . . . . 1 . . . . . . . . 1 . . 1 Parts Field Recycled . | . . . . . . . . . . . . . . . . . . . . . . . . . . . . . . . . . . . Retrieved Matter . | . . . . . . . . . . . . . . . . . . . . . . . . . . . . . . . . . . . Parts Self-Destructed 19 | . . . . . . . . 3 . . . . . . 2 1 . . 2 4 . . . . 7 . . . . . . . . . Prevented 14 | . . . . . . . . . . 2 . . . . . 2 . . . 6 2 . . . 1 1 . . . . . . . . Kills | -11 -10 -10 -10 -9 -8 -7 -7 -7 -7 -6 -6 -6 -6 -6 -6 -5 -5 -5 -5 -5 -4 -4 -4 -4 -4 -4 -4 -3 -3 -3 -3 -2 -2 -1 ------- Run | Scr Mat Min Exi Min Mat Fac Low Low Dat Pro Fac Was Fac Low Zio Pro Fac Upp Upp War Pro Fac Was Fac Upp Upp Zhi Pro Res Qua Sec Res Tes Acc Combat Hostiles Destroyed 98 | . 14 7 . 13 34 20 . . . . . . . . . . . . . . . 1 1 . 5 . . . . . 3 . . . Melee 3 | . . . . . . . . . . . . . . . . . . . . . . 1 . . . . . . . . 2 . . . Guns 85 | . 14 7 . 13 31 20 . . . . . . . . . . . . . . . . . . . . . . . . . . . . AOE 9 | . . . . . 2 . . . . . . . . . . . . . . . . . 1 . 5 . . . . . 1 . . . Classes Destroyed 15 | . 5 1 . 1 5 1 . 1 . . . . . . . . . . . . . . 1 . . . . . . . . . . . Worker 28 | . 1 . . . 1 . . . . . . . . . . . 1 . . . . 5 . 4 . . . . 5 6 . . 2 3 Builder 3 | . . . . . 2 . . . . . . . . . . . . . . . . . . . . . . . . . . 1 . . Hauler 12 | . . . . . 6 . . . . . 3 . . . . . . . . . . . . . . . . . . . . 3 . . Recycler 21 | . 1 1 . 2 2 . . . . . 3 . . . . . 2 . . . . 2 . . . . . . 1 . 4 . . 3 Operator 7 | . . . . . 1 3 . . . . . . . . . . . . . . . 1 . . . . . . . . . 2 . . Watcher 31 | . 1 . . . 3 2 . . . . . . 1 . . . 1 . . . . 4 . 4 . . . . 4 2 2 4 1 2 Swarmer 44 | . 6 . . 11 10 8 . . . . . . . . . . . . . . . 1 . . 5 . . . . . 3 . . . Grunt 30 | . 8 2 . 1 12 7 . . . . . . . . . . . . . . . . . . . . . . . . . . . . Brawler 2 | . . . . . . 2 . . . . . . . . . . . . . . . . . . . . . . . . . . . . Duelist 2 | . . . . 1 . 1 . . . . . . . . . . . . . . . . . . . . . . . . . . . . Sentry 11 | . . . . . 10 1 . . . . . . . . . . . . . . . . . . . . . . . . . . . . Hunter 3 | . . . . . 2 1 . . . . . . . . . . . . . . . . . . . . . . . . . . . . Compactor 1 | . . . . . . . . . . . . . . . . . . . . . . . 1 . . . . . . . . . . . Decomposer 10 | . . . . . . . . 2 . . . . . . . 1 . . 2 . 2 . . . 3 . . . . . . . . . Packrat 1 | . . . . . . . . . . . . . . . . . . . . . . . . . . 1 . . . . . . . . Samaritan 2 | . . . . . . . . 1 . . . . . . . . . . . . 1 . . . . . . . . . . . . . Assembled 5 | . . 5 . . . . . . . . . . . . . . . . . . . . . . . . . . . . . . . . Best Kill Streak 10 | . 5 2 . 4 6 10 . . 1 . 1 . 1 . . . 1 . . . . 3 1 2 5 . . . 2 3 3 4 1 3 Combat Bots Only 10 | . 3 2 . 4 5 10 . . . . . . . . . . . . . . . 1 1 . 5 . . . . . 3 . . . Max Kills in Single Turn 5 | . 2 1 . 1 2 2 . 1 1 . 1 . 1 . . 1 1 . 1 . 1 1 1 1 5 1 . . 1 1 1 1 1 1 Gunslinging 1 | . 1 . . . 1 . . . . . . . . . . . . . . . . . . . . . . . . . . . . . Exploded 5 | . . . . . 2 . . . . . . . . . . . . . . . . . 1 . 5 . . . . . 1 . . . Melee 1 | . . . . . . . . . . . . . . . . . . . . . . 1 . . . . . . . . 1 . . . Uniques/NPCs Destroyed 1 | . . . . . . . . . 1 . . . . . . . . . . . . . . . . . . . . . . . . . Data Miner (-7/Data Miner) Combat | -11 -10 -10 -10 -9 -8 -7 -7 -7 -7 -6 -6 -6 -6 -6 -6 -5 -5 -5 -5 -5 -4 -4 -4 -4 -4 -4 -4 -3 -3 -3 -3 -2 -2 -1 -------- Run | Scr Mat Min Exi Min Mat Fac Low Low Dat Pro Fac Was Fac Low Zio Pro Fac Upp Upp War Pro Fac Was Fac Upp Upp Zhi Pro Res Qua Sec Res Tes Acc Damage Taken 6032 | . 563 520 . 273 968 1423 . . . 99 . . 20 . . 18 . . . . . 130 . 23 124 12 . . 319 41 801 425 273 . Core 630 | . 80 12 . 27 80 146 . . . . . . . . . . . . . . . . . . . . . . . . 125 133 27 . Absorbed by Shields . | . . . . . . . . . . . . . . . . . . . . . . . . . . . . . . . . . . . Core Remaining (%) 87 | 100 . . . 52 85 . . . . 79 . . . . . 100 . . . . 100 . . . . . . 100 . . 78 . 82 100 Volleys Fired 457 | . 38 39 2 31 81 52 6 . . 6 12 . 6 . 5 6 20 3 10 . . 30 5 14 12 . . . 21 4 21 14 8 11 Largest 2 | . 2 2 1 2 2 2 1 . . 1 1 . 1 . 1 1 1 1 1 . . 1 1 1 1 . . . 1 1 1 1 1 1 Hottest 126 | . 40 40 23 40 126 56 65 . . 65 90 . 90 . 20 90 90 90 90 . . 90 43 90 90 . . . 90 113 113 113 120 120 Shots Fired 692 | . 76 78 2 62 158 102 6 . . 6 12 . 6 . 5 6 20 3 10 . . 30 5 14 12 . . . 21 4 21 14 8 11 Gun 469 | . 76 78 2 62 150 100 . . . . . . . . . . . . . . . . . . . . . . . . 1 . . . Cannon 172 | . . . . . 7 . 6 . . 6 4 . 5 . . 6 18 2 10 . . 20 . 12 11 . . . 20 4 8 14 8 11 Launcher 13 | . . . . . 1 2 . . . . . . . . . . . 1 . . . . 5 . 1 . . . . . 3 . . . Special 38 | . . . . . . . . . . . 8 . 1 . 5 . 2 . . . . 10 . 2 . . . . 1 . 9 . . . Kinetic 466 | . 76 78 2 62 148 100 . . . . . . . . . . . . . . . . . . . . . . . . . . . . Thermal 191 | . . . . . . . 6 . . 6 7 . 6 . 5 6 20 2 10 . . 23 . 14 11 . . . 20 4 18 14 8 11 Explosive 13 | . . . . . 1 2 . . . . . . . . . . . 1 . . . . 5 . 1 . . . . . 3 . . . Electromagnetic 9 | . . . . . 9 . . . . . . . . . . . . . . . . . . . . . . . . . . . . . Robot Hit Streak 25 | . 19 19 . 13 25 25 . . . . 3 . . . 5 . . . . . . 2 3 . . . . . 1 . 2 3 . . Robot Miss Streak 7 | . 2 3 . 2 7 6 . . . . 3 . . . . . 1 . . . . 4 . 1 . . . . . . 3 . . . Penetration Max . | . . . . . . . . . . . . . . . . . . . . . . . . . . . . . . . . . . . Secondary Targets 9 | . 2 . . 1 3 3 . . . . . . . . . . . . . . . . . . . . . . . . . . . . Max Gunslinging Chain 1 | . 1 . . 1 1 1 . . . . . . . . . . . . . . . . . . . . . . . . . . . . Shots Hit Robots 560 | . 59 52 . 41 141 97 . 4 1 . 18 . 2 . 5 2 15 . 2 . 3 22 1 16 4 1 . . 15 8 17 15 9 10 Core Hits 453 | . 26 21 . 23 169 112 . 2 1 . 7 . 1 . 2 1 5 1 2 . 3 13 2 8 6 1 . . 9 6 11 10 3 8 Critical Hits 16 | . . 2 . . . . . . . . . . . . 1 . . . . . . 3 . 1 1 . . . 1 1 3 1 . 2 Critical Kills 8 | . . 1 . . . . . . . . . . . . . . . . . . . 2 . 1 . . . . 1 1 . 1 . 1 Critical Parts Destroyed 8 | . . 1 . . . . . . . . . . . . 1 . . . . . . 1 . . 1 . . . . . 3 . . 1 Melee Attacks 645 | . 1 . . . 11 26 2 4 10 5 76 . 29 . . 5 64 2 7 . 4 90 . 76 11 1 . . 59 31 20 31 43 37 Impact . | . . . . . . . . . . . . . . . . . . . . . . . . . . . . . . . . . . . Slashing 287 | . . . . . 11 11 . . . . 45 . 29 . . 5 64 2 7 . 4 58 . . . . . . . 28 20 3 . . Piercing 354 | . . . . . . 15 2 4 10 5 31 . . . . . . . . . . 32 . 76 11 1 . . 59 3 . 28 40 37 Sneak Attacks 82 | . 1 . . . 2 2 . 4 1 . 6 . 1 . . 2 3 . 2 . 3 8 . 5 4 1 . . 7 6 7 4 6 7 Combat Hostiles . | . . . . . . . . . . . . . . . . . . . . . . . . . . . . . . . . . . . Follow-up Attacks . | . . . . . . . . . . . . . . . . . . . . . . . . . . . . . . . . . . . Damage Inflicted 24267 | . 678 423 . 362 3503 2081 . 357 114 . 997 . 186 . 55 262 961 155 250 . 427 1689 558 1362 896 125 . . 1462 1768 2662 1085 649 1200 Guns 6096 | . 678 423 . 362 2983 1650 . . . . . . . . . . . . . . . . . . . . . . . . . . . . Cannons 267 | . . . . . 137 . . . . . . . . . . . . . . . . . . . . . . . . . . 130 . . Explosions 1611 | . . . . . 88 199 . . . . . . . . . . . 155 . . . . 558 . 345 . . . . . 266 . . . Melee 16093 | . . . . . 261 232 . 357 114 . 986 . 186 . . 262 961 . 250 . 427 1673 . 1362 551 125 . . 1462 1768 2312 955 649 1200 Ramming 34 | . . . . . 34 . . . . . . . . . . . . . . . . . . . . . . . . . . . . . Kinetic 6069 | . 678 423 . 362 2956 1650 . . . . . . . . . . . . . . . . . . . . . . . . . . . . Thermal 296 | . . . . . . . . . . . 11 . . . 55 . . . . . . 16 . . . . . . . . 84 130 . . Explosive 1611 | . . . . . 88 199 . . . . . . . . . . . 155 . . . . 558 . 345 . . . . . 266 . . . Electromagnetic 164 | . . . . . 164 . . . . . . . . . . . . . . . . . . . . . . . . . . . . . Impact . | . . . . . . . . . . . . . . . . . . . . . . . . . . . . . . . . . . . Slashing 8327 | . . . . . 261 153 . . . . 822 . 186 . . 262 961 . 250 . 427 908 . . . . . . . 1712 2312 73 . . Piercing 7766 | . . . . . . 79 . 357 114 . 164 . . . . . . . . . . 765 . 1362 551 125 . . 1462 56 . 882 649 1200 Highest Corruption 9 | . . . . . . 2 2 2 1 . . . . . . . 1 1 1 1 . . . 2 2 . . . 9 . 1 5 . . Average Corruption 2 | . . . . . . 1 2 1 1 . . . . . . . 1 1 1 1 . . . 2 1 . . . 6 . 1 3 . . Corruption Purged 18 | . . . . . . . . 1 1 . . . . . . . . . . . . . . . 2 . . . 9 . . 5 . . Effects 54 | . . . . . . 13 2 2 . . . . . . . . 1 1 2 . . . . 7 1 . . . 17 . . 8 . . Message Errors 18 | . . . . . . 5 . 1 . . . . . . . . 1 1 1 . . . . 3 . . . . 4 . . 2 . . Matter Fused 8 | . . . . . . . . . . . . . . . . . . . . . . . . . . . . . 6 . . 2 . . Heat Flow Errors 6 | . . . . . . . . . . . . . . . . . . . . . . . . 3 . . . . 2 . . 1 . . Energy Discharges 8 | . . . . . . 1 2 . . . . . . . . . . . 1 . . . . . 1 . . . 2 . . 1 . . Data Loss (minor) 8 | . . . . . . 3 . 1 . . . . . . . . . . . . . . . 1 . . . . 2 . . 1 . . Targeting Errors 6 | . . . . . . 4 . . . . . . . . . . . . . . . . . . . . . . 1 . . 1 . . Overload Shots . | . . . . . . . . . . . . . . . . . . . . . . . . . . . . . . . . . . . Overflow Damage 3034 | . . . . . 88 132 . 100 . . 4 . 104 . 5 117 218 . . . . 439 . 313 216 . . . 285 460 415 96 . 42 Projectiles 5 | . . . . . . . . . . . . . . . 5 . . . . . . . . . . . . . . . . . . . Explosions 63 | . . . . . 5 57 . . . . . . . . . . . . . . . . . . . . . . . . 1 . . . Melee 2966 | . . . . . 83 75 . 100 . . 4 . 104 . . 117 218 . . . . 439 . 313 216 . . . 285 460 414 96 . 42 Knockbacks . | . . . . . . . . . . . . . . . . . . . . . . . . . . . . . . . . . . . Impact . | . . . . . . . . . . . . . . . . . . . . . . . . . . . . . . . . . . . Kinetic . | . . . . . . . . . . . . . . . . . . . . . . . . . . . . . . . . . . . Secondary . | . . . . . . . . . . . . . . . . . . . . . . . . . . . . . . . . . . . Self-Inflicted Damage 44 | . . . . . . . . . . . . . . . . . . . . . . . . . . . . . . . 44 . . . Shots 1 | . . . . . . . . . . . . . . . . . . . . . . . . . . . . . . . 1 . . . Rammed 3 | . . . . . 3 . . . . . . . . . . . . . . . . . . . . . . . . . . . . . Targets Rammed 3 | . . . . . 3 . . . . . . . . . . . . . . . . . . . . . . . . . . . . . Kicked . | . . . . . . . . . . . . . . . . . . . . . . . . . . . . . . . . . . . Crushed . | . . . . . . . . . . . . . . . . . . . . . . . . . . . . . . . . . . . Highest Temperature 347 | . 12 20 . 8 268 108 160 . . 110 132 . 132 . . 216 90 52 150 . . 102 8 274 346 . . . 177 . 112 347 148 290 Average Temperature 56 | . 6 5 . 2 48 37 90 . . 49 45 . 50 . . 111 33 30 69 . . 35 3 91 136 . . . 60 . 45 75 64 62 Received Heat Transfer 1013 | . 228 110 . 12 279 291 . . . 36 . . 12 . . 9 . . . . . . . . . . . . . 9 9 . 18 . Effects 2 | . . . . . . . . . . . . . . . . . . . . . . . . 1 . . . . . . . 1 . . Shutdowns 1 | . . . . . . . . . . . . . . . . . . . . . . . . . . . . . . . . 1 . . Energy Bleed 1 | . . . . . . . . . . . . . . . . . . . . . . . . 1 . . . . . . . . . . Siege Activations . | . . . . . . . . . . . . . . . . . . . . . . . . . . . . . . . . . . . Robots Corrupted 1 | . . . . . 1 . . . . . . . . . . . . . . . . . . . . . . . . . . . . . Combat Hostiles 1 | . . . . . 1 . . . . . . . . . . . . . . . . . . . . . . . . . . . . . Parts Fried . | . . . . . . . . . . . . . . . . . . . . . . . . . . . . . . . . . . . Impact Corruptions . | . . . . . . . . . . . . . . . . . . . . . . . . . . . . . . . . . . . Robots Melted . | . . . . . . . . . . . . . . . . . . . . . . . . . . . . . . . . . . . Combat Hostiles . | . . . . . . . . . . . . . . . . . . . . . . . . . . . . . . . . . . . Parts Melted . | . . . . . . . . . . . . . . . . . . . . . . . . . . . . . . . . . . . Heat Transferred 555 | . . . . . . . . . . . 37 . . . 185 . . . . . . 37 . . . . . . . . 185 111 . . Parts Sabotaged . | . . . . . . . . . . . . . . . . . . . . . . . . . . . . . . . . . . . Parts Stolen . | . . . . . . . . . . . . . . . . . . . . . . . . . . . . . . . . . . . Parts Stripped . | . . . . . . . . . . . . . . . . . . . . . . . . . . . . . . . . . . . Power Chain Reactions 1 | . . . . . . . . . . . . . . . . . . . . . . . . . . . . . . . . . 1 . Missiles Intercepted . | . . . . . . . . . . . . . . . . . . . . . . . . . . . . . . . . . . . Alert | -11 -10 -10 -10 -9 -8 -7 -7 -7 -7 -6 -6 -6 -6 -6 -6 -5 -5 -5 -5 -5 -4 -4 -4 -4 -4 -4 -4 -3 -3 -3 -3 -2 -2 -1 ------- Run | Scr Mat Min Exi Min Mat Fac Low Low Dat Pro Fac Was Fac Low Zio Pro Fac Upp Upp War Pro Fac Was Fac Upp Upp Zhi Pro Res Qua Sec Res Tes Acc Peak Influence 861 | . 187 129 . 260 548 861 . . . . 127 7 111 . . . 486 . . . . 425 207 280 . . . . 400 208 315 587 407 269 Initial 330 | . . 69 . . 1 156 . . . . . 7 4 . . . . . . . . . 45 144 . . . . . 28 60 64 330 244 Average 140 | . 84 44 . 98 253 313 . . . . 35 7 53 . . . 145 . . . . 62 137 130 . . . . 27 91 151 150 281 136 Maximum Alert Level 3 | . . . . 1 2 3 . . . . . . . . . . 2 . . . . 2 1 1 . . . . 2 1 1 2 2 1 Low Security (%) 72 | 100 100 100 . 82 32 18 . . . . 100 100 100 . . . 77 . . . . 95 64 79 . . . . 99 94 79 75 20 91 Level 1 22 | . . . . 17 54 63 . . . . . . . . . . 7 . . . . . 35 20 . . . . . 5 20 21 78 8 Level 2 4 | . . . . . 13 12 . . . . . . . . . . 14 . . . . 4 . . . . . . . . . 3 . . Level 3 . | . . . . . . 6 . . . . . . . . . . . . . . . . . . . . . . . . . . . . Level 4 . | . . . . . . . . . . . . . . . . . . . . . . . . . . . . . . . . . . . Level 5 . | . . . . . . . . . . . . . . . . . . . . . . . . . . . . . . . . . . . High Security . | . . . . . . . . . . . . . . . . . . . . . . . . . . . . . . . . . . . Max Security . | . . . . . . . . . . . . . . . . . . . . . . . . . . . . . . . . . . . Squads Dispatched 43 | . 4 . . . 3 4 . . . . 4 . 1 . . . 2 . . . . 3 . 3 . . . . 6 1 3 . 7 2 Investigation 9 | . 2 . . . 2 1 . . . . . . . . . . . . . . . . . . . . . . 1 . 1 . 2 . Extermination 19 | . . . . . . 1 . . . . 3 . 1 . . . 1 . . . . 2 . 1 . . . . 4 1 1 . 2 2 Reinforcement 13 | . 2 . . . 1 . . . . . 1 . . . . . 1 . . . . 1 . 2 . . . . 1 . 1 . 3 . Assault . | . . . . . . . . . . . . . . . . . . . . . . . . . . . . . . . . . . . Garrison 2 | . . . . . . 2 . . . . . . . . . . . . . . . . . . . . . . . . . . . . Intercept . | . . . . . . . . . . . . . . . . . . . . . . . . . . . . . . . . . . . Construction Impeded . | . . . . . . . . . . . . . . . . . . . . . . . . . . . . . . . . . . . Haulers Reinforced 1 | . . . . . . . . . . . . . . . . . . . . . . . . . . . . . . . . . 1 . Stealth | -11 -10 -10 -10 -9 -8 -7 -7 -7 -7 -6 -6 -6 -6 -6 -6 -5 -5 -5 -5 -5 -4 -4 -4 -4 -4 -4 -4 -3 -3 -3 -3 -2 -2 -1 --------- Run | Scr Mat Min Exi Min Mat Fac Low Low Dat Pro Fac Was Fac Low Zio Pro Fac Upp Upp War Pro Fac Was Fac Upp Upp Zhi Pro Res Qua Sec Res Tes Acc Distress Signals 15 | . . . . . 2 1 . . . . 1 . 3 . . . . . . . . . . . . . . . . . 1 6 1 . Communications Jammed 17 | . . . . . . . . . . . . . . . . . . . . . . 9 . 3 . . . . 2 . 3 . . . Distress Signals 17 | . . . . . . . . . . . . . . . . . . . . . . 9 . 3 . . . . 2 . 3 . . . Times Spotted 277 | . 23 16 . 13 52 32 . . . 4 14 . 9 . . 1 4 4 . . . 14 5 14 5 3 . . 8 7 14 12 17 6 Peak Tracking Total 14 | . 4 3 9 4 4 5 . . . 4 4 . 4 . . 1 1 4 . . . 3 4 2 5 5 . . 2 3 8 7 14 2 Tactical Retreats 21 | . . 3 . 1 1 . . . . . 2 . 1 . . . . . . . . 2 1 2 . . . . 1 1 1 4 1 . Traps | -11 -10 -10 -10 -9 -8 -7 -7 -7 -7 -6 -6 -6 -6 -6 -6 -5 -5 -5 -5 -5 -4 -4 -4 -4 -4 -4 -4 -3 -3 -3 -3 -2 -2 -1 ------- Run | Scr Mat Min Exi Min Mat Fac Low Low Dat Pro Fac Was Fac Low Zio Pro Fac Upp Upp War Pro Fac Was Fac Upp Upp Zhi Pro Res Qua Sec Res Tes Acc Traps Triggered 16 | . 6 . . . 1 1 . . . . 2 . . . . . 1 . . . . 1 . 1 . . . . 2 . 1 . . . Indirectly . | . . . . . . . . . . . . . . . . . . . . . . . . . . . . . . . . . . . Trap Hack Attempts . | . . . . . . . . . . . . . . . . . . . . . . . . . . . . . . . . . . . Triggered . | . . . . . . . . . . . . . . . . . . . . . . . . . . . . . . . . . . . Disarmed . | . . . . . . . . . . . . . . . . . . . . . . . . . . . . . . . . . . . Reprogrammed 6 | . . . . . . . . . . . . . . . . . . . . . . . . . . . . . . . . . 6 . Reused 1 | . . . . . . . . . . . . . . . . . . . . . . . . . . . . . . . . . 1 . Traps Extracted . | . . . . . . . . . . . . . . . . . . . . . . . . . . . . . . . . . . . Installed 5 | . . . . 1 . . . . 4 . . . . . . . . . . . . . . . . . . . . . . . . . Triggered 20 | . . . . . . . . 2 . 2 . . . . . 3 . 1 1 6 1 . . . 2 1 . . . . . . 1 . Machines | -11 -10 -10 -10 -9 -8 -7 -7 -7 -7 -6 -6 -6 -6 -6 -6 -5 -5 -5 -5 -5 -4 -4 -4 -4 -4 -4 -4 -3 -3 -3 -3 -2 -2 -1 ---------- Run | Scr Mat Min Exi Min Mat Fac Low Low Dat Pro Fac Was Fac Low Zio Pro Fac Upp Upp War Pro Fac Was Fac Upp Upp Zhi Pro Res Qua Sec Res Tes Acc Machines Disabled 13 | . . . 1 . . 3 . . . . 1 . . . . . . . . . . . . . . . . . . 4 1 . 3 . Max in Single Turn 1 | . . . 1 . . 1 . . . . 1 . . . . . . . . . . . . . . . . . . 1 1 . 1 . Garrison Access 13 | . . . . . 1 1 . . . . 1 . 1 . . . 2 . . . . 2 . 1 . . . . 1 1 . 2 . . Machines Sabotaged . | . . . . . . . . . . . . . . . . . . . . . . . . . . . . . . . . . . . Garrisons Compromised . | . . . . . . . . . . . . . . . . . . . . . . . . . . . . . . . . . . . Overloaded Fab Kills . | . . . . . . . . . . . . . . . . . . . . . . . . . . . . . . . . . . . Fab Network Shutdowns 5 | . . . . . . 1 . . . . . . . . . . 1 . . . . 1 . . . . . . 1 . . 1 . . Hacking | -11 -10 -10 -10 -9 -8 -7 -7 -7 -7 -6 -6 -6 -6 -6 -6 -5 -5 -5 -5 -5 -4 -4 -4 -4 -4 -4 -4 -3 -3 -3 -3 -2 -2 -1 --------- Run | Scr Mat Min Exi Min Mat Fac Low Low Dat Pro Fac Was Fac Low Zio Pro Fac Upp Upp War Pro Fac Was Fac Upp Upp Zhi Pro Res Qua Sec Res Tes Acc Machines Accessed 195 | . 7 1 2 1 15 12 1 . 4 . 15 . 15 . . 1 17 . . 11 . 21 . 14 . . 5 . 13 12 7 4 8 9 Terminals 104 | . 6 . . 1 9 7 . . . . 9 . 7 . . 1 11 . . . . 13 . 8 . . . . 7 9 4 1 5 6 Fabricators 20 | . . . . . . 3 . . . . 2 . 4 . . . 2 . . . . 1 . 3 . . . . 1 . . 1 2 1 Repair Stations 17 | . . . . . 2 . . . . . 2 . 1 . . . 1 . . . . 3 . 1 . . . . 1 1 2 . 1 2 Recycling Units 4 | . 1 . . . 1 . . . . . . . 1 . . . . . . . . 1 . . . . . . . . . . . . Scanalyzers 13 | . . . . . 2 1 . . . . 1 . 1 . . . 1 . . . . 1 . 1 . . . . 3 1 1 . . . Garrison Access 13 | . . . . . 1 1 . . . . 1 . 1 . . . 2 . . . . 2 . 1 . . . . 1 1 . 2 . . Total Hacks 628 | . 19 1 2 2 49 38 1 . 29 . 53 . 46 . . 1 62 . . 20 . 87 . 41 . . 17 . 61 25 22 7 20 25 Successful 524 | . 9 1 2 1 30 24 1 . 29 . 41 . 42 . . 1 51 . . 20 . 80 . 39 . . 17 . 56 21 18 6 16 19 Failed 102 | . 10 . . 1 18 14 . . . . 11 . 4 . . . 11 . . . . 7 . 2 . . . . 5 4 4 1 4 6 Catastrophic 3 | . 2 . . . . 1 . . . . . . . . . . . . . . . . . . . . . . . . . . . . Database Lockouts 2 | . . . . . 1 . . . . . 1 . . . . . . . . . . . . . . . . . . . . . . . Manual 352 | . 19 . 1 5 31 22 . . . . 39 . 24 . 1 1 45 . . 1 . 59 . 26 . . . . 30 19 7 2 8 12 Terminals 359 | . 17 . . 2 30 22 . . . . 36 . 25 . . 1 46 . . . . 59 . 25 . . . . 35 20 11 1 14 15 Fabricators 93 | . . . . . . 9 . . . . 10 . 14 . . . 8 . . . . 12 . 12 . . . . 16 . . 4 4 4 Repair Stations 52 | . . . . . 12 . . . . . 4 . 3 . . . 2 . . . . 8 . 2 . . . . 4 2 7 . 2 6 Recycling Units 5 | . 2 . . . 1 . . . . . . . 1 . . . . . . . . 1 . . . . . . . . . . . . Scanalyzers 35 | . . . . . 4 6 . . . . 2 . 2 . . . 4 . . . . 5 . 1 . . . . 5 2 4 . . . Garrison Access 14 | . . . . . 2 1 . . . . 1 . 1 . . . 2 . . . . 2 . 1 . . . . 1 1 . 2 . . Terminal Hacks 244 | . 3 1 2 1 7 7 1 . 29 . 16 . 16 . . 1 22 . . 20 . 32 . 14 . . 17 . 25 7 6 1 8 8 Record 38 | . . . 1 . . . . . 11 . . . 1 . . 1 . . . 18 . . . . . . 6 . . . . . . . Part Schematic 33 | . . . . . . 1 . . 10 . 3 . 5 . . . 2 . . . . 3 . 1 . . 3 . 1 4 . . . . Robot Schematic 5 | . . . . . . . . . 5 . . . . . . . . . . . . . . . . . . . . . . . . . Robot Analysis 15 | . 2 . . 1 1 . . . . . . . . . . . 5 . . . . 2 . . . . 4 . . . . . . . Prototype ID Bank 7 | . . . . . . . . . 3 . . . . . . . . . . . . . . . . . 4 . . . . . . . Open Door 5 | . . 1 . . . . 1 . . . . . . . . . . . . 2 . . . . . . . . . . . . . 1 Level Access Points 7 | . . . . . . . . . . . . . . . . . 1 . . . . 1 . 1 . . . . 1 1 . . 1 1 Branch Access Points 8 | . . . . . . 1 . . . . 1 . 1 . . . 1 . . . . 1 . 1 . . . . 1 . . . . 1 Machine Index 3 | . . . . . . . . . . . . . . . . . 1 . . . . 1 . 1 . . . . . . . . . . Terminal Index 9 | . . . . . 1 1 . . . . 1 . 1 . . . . . . . . . . . . . . . 1 1 1 . 1 1 Fabricator Index 6 | . . . . . . 1 . . . . 1 . 1 . . . . . . . . . . . . . . . 1 . 1 1 . . Repair Station Index 2 | . . . . . . . . . . . . . . . . . . . . . . . . . . . . . 1 . 1 . . . Scanalyzer Index 4 | . . . . . . . . . . . 1 . 1 . . . . . . . . . . . . . . . 1 . 1 . . . Garrison Index 2 | . . . . . . . . . . . 1 . . . . . . . . . . . . . . . . . . . 1 . . . Alert Level 6 | . . . . . 1 1 . . . . 1 . 1 . . . . . . . . . . . . . . . . . . . 1 1 Unreport Threat 19 | . . . . . 3 . . . . . . . . . . . 3 . . . . 7 . . . . . . 4 . . . 1 1 Locate Traps 17 | . . . . . . 1 . . . . 1 . . . . . 2 . . . . 4 . 2 . . . . 3 1 . . 2 1 Reprogram Traps 1 | . . . . . . . . . . . . . . . . . . . . . . . . . . . . . . . . . 1 . Recall Extermination 15 | . . . . . . . . . . . 3 . 1 . . . 1 . . . . 2 . 1 . . . . 4 . 1 . 1 1 Recall Reinforcements 2 | . . . . . . . . . . . . . . . . . . . . . . . . 1 . . . . 1 . . . . . Hauler Manifests 5 | . . . . . 1 . . . . . 1 . 1 . . . . . . . . 1 . . . . . . 1 . . . . . Zone Layout 34 | . 1 . . . . 1 . . . . 2 . 3 . . . 6 . . . . 10 . 6 . . . . 5 . . . . . EX-Prototype ID Bank 1 | . . . 1 . . . . . . . . . . . . . . . . . . . . . . . . . . . . . . . Fabricator Hacks 60 | . . . . . . 5 . . . . 7 . 9 . . . 4 . . . . 9 . 6 . . . . 13 . . 2 3 2 Network Status 7 | . . . . . . . . . . . 2 . 1 . . . . . . . . 1 . 1 . . . . 1 . . . 1 . Load Schematic 24 | . . . . . . 3 . . . . 2 . 3 . . . 2 . . . . 3 . 2 . . . . 6 . . 1 1 1 Build 29 | . . . . . . 2 . . . . 3 . 5 . . . 2 . . . . 5 . 3 . . . . 6 . . 1 1 1 Repair Station Hacks 48 | . . . . . 9 . . . . . 4 . 3 . . . 2 . . . . 8 . 2 . . . . 4 2 6 . 2 6 Scan Component 25 | . . . . . 5 . . . . . 2 . 2 . . . 1 . . . . 4 . 1 . . . . 2 1 3 . 1 3 Repair 23 | . . . . . 4 . . . . . 2 . 1 . . . 1 . . . . 4 . 1 . . . . 2 1 3 . 1 3 Recycling Unit Hacks 2 | . . . . . 1 . . . . . . . . . . . . . . . . 1 . . . . . . . . . . . . Report Inventory 2 | . . . . . 1 . . . . . . . . . . . . . . . . 1 . . . . . . . . . . . . Scanalyzer 35 | . . . . . 4 6 . . . . 2 . 2 . . . 4 . . . . 5 . 1 . . . . 5 2 4 . . . Insert Component 24 | . . . . . 2 3 . . . . 1 . 1 . . . 2 . . . . 4 . 1 . . . . 4 2 4 . . . Analyze 11 | . . . . . 2 3 . . . . 1 . 1 . . . 2 . . . . 1 . . . . . . 1 . . . . . Garrison Access Hacks 11 | . . . . . . . . . . . 1 . 1 . . . 2 . . . . 2 . 1 . . . . 1 1 . 2 . . Seal Access 11 | . . . . . . . . . . . 1 . 1 . . . 2 . . . . 2 . 1 . . . . 1 1 . 2 . . Unauthorized Hacks 124 | . 6 . . . 9 6 . . . . 11 . 11 . . . 17 . . . . 23 . 15 . . . . 8 9 2 1 3 3 Terminals 92 | . 5 . . . 8 3 . . . . 9 . 6 . . . 13 . . . . 20 . 9 . . . . 5 9 2 . 2 1 Track 45 | . 3 . . . 2 1 . . . . 5 . 1 . . . 6 . . . . 13 . 4 . . . . 4 4 1 . . 1 Assimilate 27 | . . . . . 3 . . . . . 2 . 3 . . . 4 . . . . 5 . 3 . . . . . 4 1 . 2 . Botnet 14 | . 2 . . . 2 2 . . . . 2 . 2 . . . 2 . . . . . . 2 . . . . . . . . . . Disrupt 1 | . . . . . . . . . . . . . . . . . . . . . . 1 . . . . . . . . . . . . Operators 5 | . . . . . 1 . . . . . . . . . . . 1 . . . . 1 . . . . . . 1 1 . . . . Fabricators 28 | . . . . . . 2 . . . . 2 . 4 . . . 4 . . . . 3 . 6 . . . . 3 . . 1 1 2 Report 6 | . . . . . . 1 . . . . . . 1 . . . 1 . . . . 1 . 1 . . . . 1 . . . . . Prioritize 7 | . . . . . . . . . . . . . . . . . 2 . . . . 1 . 1 . . . . 1 . . 1 . 1 Siphon 13 | . . . . . . 1 . . . . 2 . 3 . . . 1 . . . . 1 . 3 . . . . 1 . . . . 1 Haulers 1 | . . . . . . . . . . . . . . . . . . . . . . . . 1 . . . . . . . . . . Overload 1 | . . . . . . . . . . . . . . . . . . . . . . . . . . . . . . . . . 1 . Repair Stations . | . . . . . . . . . . . . . . . . . . . . . . . . . . . . . . . . . . . Recycling Units 2 | . 1 . . . . . . . . . . . 1 . . . . . . . . . . . . . . . . . . . . . Recyclers 1 | . . . . . . . . . . . . . 1 . . . . . . . . . . . . . . . . . . . . . Tunnel 1 | . 1 . . . . . . . . . . . . . . . . . . . . . . . . . . . . . . . . . Scanalyzers . | . . . . . . . . . . . . . . . . . . . . . . . . . . . . . . . . . . . Garrison Access 2 | . . . . . 1 1 . . . . . . . . . . . . . . . . . . . . . . . . . . . . Jam 2 | . . . . . 1 1 . . . . . . . . . . . . . . . . . . . . . . . . . . . . Data Cores Recovered . | . . . . . . . . . . . . . . . . . . . . . . . . . . . . . . . . . . . Used . | . . . . . . . . . . . . . . . . . . . . . . . . . . . . . . . . . . . Hacking Detections 109 | . 6 . . 1 15 10 . . . . 9 . 11 . . . 6 . . . . 8 . 8 . . . . 8 7 4 2 6 8 Full Trace Events 4 | . . . . 1 . . . . . . . . . . . . . . . . . . . . . . . . 1 . 1 . 1 . Feedback Events 1 | . . . . . . . . . . . . . . . . . . . . . . . . . . . . . . . 1 . . . Hackware Fried 1 | . . . . . . . . . . . . . . . . . . . . . . . . . . . . . . . 1 . . . Feedback Blocked . | . . . . . . . . . . . . . . . . . . . . . . . . . . . . . . . . . . . Robot Schematics Acquired 5 | . . . . . . . . . 5 . . . . . . . . . . . . . . . . . . . . . . . . . Robots Built . | . . . . . . . . . . . . . . . . . . . . . . . . . . . . . . . . . . . Matter . | . . . . . . . . . . . . . . . . . . . . . . . . . . . . . . . . . . . Time . | . . . . . . . . . . . . . . . . . . . . . . . . . . . . . . . . . . . Total Robot Build Rating . | . . . . . . . . . . . . . . . . . . . . . . . . . . . . . . . . . . . Part Schematics Acquired 43 | . . . . . 2 4 . . 10 . 4 . 6 . . . 4 . . . . 4 . 1 . . 3 . 1 4 . . . . Parts Built 28 | . . . . . . 3 . . . . 3 . 4 . . . 2 . . . . 4 . 3 . . . . 6 . . 1 1 1 Matter 5695 | . . . . . . 235 . . . . 531 . 744 . . . 444 . . . . 902 . 634 . . . . 1290 . . 417 285 213 Time 1953 | . . . . . . 157 . . . . 258 . 206 . . . 129 . . . . 321 . 227 . . . . 455 . . 74 50 76 Total Part Build Rating 155 | . . . . . . 11 . . . . 17 . 22 . . . 11 . . . . 22 . 19 . . . . 34 . . 9 5 5 Parts Repaired 23 | . . . . . 4 . . . . . 2 . 1 . . . 1 . . . . 4 . 1 . . . . 2 1 3 . 1 3 Time 1153 | . . . . . 170 . . . . . 57 . 44 . . . 56 . . . . 361 . 74 . . . . 62 20 209 . 25 75 Parts Recycled . | . . . . . . . . . . . . . . . . . . . . . . . . . . . . . . . . . . . Recycled Matter . | . . . . . . . . . . . . . . . . . . . . . . . . . . . . . . . . . . . Retrieved Matter . | . . . . . . . . . . . . . . . . . . . . . . . . . . . . . . . . . . . Retrieved Components . | . . . . . . . . . . . . . . . . . . . . . . . . . . . . . . . . . . . Parts Scanalyzed 11 | . . . . . 2 3 . . . . 1 . 1 . . . 2 . . . . 1 . . . . . . 1 . . . . . Part Schematics Acquired 11 | . . . . . 2 3 . . . . 1 . 1 . . . 2 . . . . 1 . . . . . . 1 . . . . . Parts Damaged 5 | . . . . . . 1 . . . . . . 1 . . . 1 . . . . 1 . . . . . . 1 . . . . . Bothacking | -11 -10 -10 -10 -9 -8 -7 -7 -7 -7 -6 -6 -6 -6 -6 -6 -5 -5 -5 -5 -5 -4 -4 -4 -4 -4 -4 -4 -3 -3 -3 -3 -2 -2 -1 ------------ Run | Scr Mat Min Exi Min Mat Fac Low Low Dat Pro Fac Was Fac Low Zio Pro Fac Upp Upp War Pro Fac Was Fac Upp Upp Zhi Pro Res Qua Sec Res Tes Acc Used RIF Installer . | . . . . . . . . . . . . . . . . . . . . . . . . . . . . . . . . . . . Robots Hacked 7 | . 1 . . . . . . . . . 3 . . . . . . . . . . 1 . . . . . . . . . . 2 . Non-combat 6 | . 1 . . . . . . . . . 3 . . . . . . . . . . 1 . . . . . . . . . . 1 . Combat 1 | . . . . . . . . . . . . . . . . . . . . . . . . . . . . . . . . . 1 . Robot Hacks Applied 8 | . 1 . . . . . . . . . 3 . . . . . . . . . . 1 . . . . . . . . . . 3 . parse_system 2 | . . . . . . . . . . . 1 . . . . . . . . . . . . . . . . . . . . . 1 . no_distress 1 | . . . . . . . . . . . . . . . . . . . . . . . . . . . . . . . . . 1 . find_chute 3 | . . . . . . . . . . . 2 . . . . . . . . . . 1 . . . . . . . . . . . . find_fabricator 1 | . . . . . . . . . . . . . . . . . . . . . . . . . . . . . . . . . 1 . check_alert 1 | . 1 . . . . . . . . . . . . . . . . . . . . . . . . . . . . . . . . . Relay Couplers Released . | . . . . . . . . . . . . . . . . . . . . . . . . . . . . . . . . . . . Robots Rewired 5 | . . . . . . . . . . . . . . . . . . . . 4 . . . . . . . . . . . . 1 . Allies Hacked . | . . . . . . . . . . . . . . . . . . . . . . . . . . . . . . . . . . . Hacks Repelled . | . . . . . . . . . . . . . . . . . . . . . . . . . . . . . . . . . . . Allies | -11 -10 -10 -10 -9 -8 -7 -7 -7 -7 -6 -6 -6 -6 -6 -6 -5 -5 -5 -5 -5 -4 -4 -4 -4 -4 -4 -4 -3 -3 -3 -3 -2 -2 -1 -------- Run | Scr Mat Min Exi Min Mat Fac Low Low Dat Pro Fac Was Fac Low Zio Pro Fac Upp Upp War Pro Fac Was Fac Upp Upp Zhi Pro Res Qua Sec Res Tes Acc Total Allies 45 | . . 3 . . 2 . . . . . 2 . 3 . . 2 1 . . 4 . 3 19 1 . . . . . 2 . . 3 . Largest Group 19 | . . 3 . . 1 1 . . . . 2 2 5 . . 2 1 1 . 4 . 3 19 1 . . . . . 2 . . 2 . Highest-Rated Group 714 | . . 40 . . 10 10 . . . . 36 36 98 . . 188 26 26 . 212 . 46 714 10 . . . . . 52 . . 187 . Highest-Rated Ally 143 | . . 16 . . 10 10 . . . . 26 26 26 . . 94 26 26 . 60 . 26 50 10 . . . . . 26 . . 143 . Total Orders 76 | . . . . . 12 . . . 1 . 10 . 10 . . . 6 5 . 3 . 15 . 1 . . . . . 8 . . 5 . STAY 46 | . . . . . 8 . . . 1 . 6 . 6 . . . 3 3 . 3 . 8 . 1 . . . . . 3 . . 4 . ROAM 1 | . . . . . . . . . . . . . . . . . . . . . . . . . . . . . . 1 . . . . FOLLOW 29 | . . . . . 4 . . . . . 4 . 4 . . . 3 2 . . . 7 . . . . . . . 4 . . 1 . Ally Attacks 117 | . . 24 . . . . . . 9 . . . . . . . . . . . . . 84 . . . . . . . . . . . Total Damage 3989 | . . 209 . . . . . . . . . . . . . . . . . . . . 3780 . . . . . . . . . . . Kills 13 | . . 5 . . . . . . . . . . . . . . . . . . . . 8 . . . . . . . . . . . Allies Corrupted . | . . . . . . . . . . . . . . . . . . . . . . . . . . . . . . . . . . . Allies Melted . | . . . . . . . . . . . . . . . . . . . . . . . . . . . . . . . . . . . Intel | -11 -10 -10 -10 -9 -8 -7 -7 -7 -7 -6 -6 -6 -6 -6 -6 -5 -5 -5 -5 -5 -4 -4 -4 -4 -4 -4 -4 -3 -3 -3 -3 -2 -2 -1 ------- Run | Scr Mat Min Exi Min Mat Fac Low Low Dat Pro Fac Was Fac Low Zio Pro Fac Upp Upp War Pro Fac Was Fac Upp Upp Zhi Pro Res Qua Sec Res Tes Acc Robot Analysis Total 15 | . 2 . . 1 1 . . . . . . . . . . . 5 . . . . 2 . . . . 4 . . . . . . . Derelict Logs Recovered 13 | . . 2 . 1 . . 1 1 . 1 . . . 1 1 2 . 2 . . . . . . 1 . . . . . . . . . Drone Launches 14 | . . . . . . . . . 14 . . . . . . . . . . . . . . . . . . . . . . . . . Drone Recoveries . | . . . . . . . . . . . . . . . . . . . . . . . . . . . . . . . . . . . Exploration | -11 -10 -10 -10 -9 -8 -7 -7 -7 -7 -6 -6 -6 -6 -6 -6 -5 -5 -5 -5 -5 -4 -4 -4 -4 -4 -4 -4 -3 -3 -3 -3 -2 -2 -1 ------------- Run | Scr Mat Min Exi Min Mat Fac Low Low Dat Pro Fac Was Fac Low Zio Pro Fac Upp Upp War Pro Fac Was Fac Upp Upp Zhi Pro Res Qua Sec Res Tes Acc Turns Passed 24763 | 42 1035 1046 471 967 3431 1930 558 509 689 235 1473 108 752 69 432 211 1065 302 262 382 138 2015 224 1204 258 132 58 79 1585 692 560 732 558 559 Spaces Moved 34719 | 33 719 774 421 720 1988 1083 378 353 654 416 2463 298 1555 201 1010 528 2057 793 629 981 384 3191 462 2449 438 444 173 282 2251 1306 929 2144 1101 1111 Core 2 | 2 . . . . . . . . . . . . . . . . . . . . . . . . . . . . . . . . . . Treads 214 | . 18 35 . 50 41 70 . . . . . . . . . . . . . . . . . . . . . . . . . . . . Legs . | . . . . . . . . . . . . . . . . . . . . . . . . . . . . . . . . . . . Wheels 6593 | 31 701 739 421 670 1947 1013 378 353 340 . . . . . . . . . . . . . . . . . . . . . . . . . Hover . | . . . . . . . . . . . . . . . . . . . . . . . . . . . . . . . . . . . Flight 27910 | . . . . . . . . . 314 416 2463 298 1555 201 1010 528 2057 793 629 981 384 3191 462 2449 438 444 173 282 2251 1306 929 2144 1101 1111 Fastest Speed 21 | 50 90 110 110 110 120 130 140 140 34 34 34 34 32 32 32 32 32 32 32 32 32 28 29 29 29 29 28 28 23 23 23 23 23 21 Average Speed 47 | 89 108 113 110 114 130 139 140 140 87 34 34 34 33 32 32 32 32 32 32 32 32 30 29 29 29 29 28 28 23 23 23 23 23 21 Slowest Speed 220 | 100 180 180 110 180 220 210 140 140 140 34 114 34 34 32 97 32 32 32 32 32 32 32 29 29 29 29 29 28 27 23 24 24 23 23 Overloaded Moves . | . . . . . . . . . . . . . . . . . . . . . . . . . . . . . . . . . . . Propulsion Burnouts . | . . . . . . . . . . . . . . . . . . . . . . . . . . . . . . . . . . . Robots Hopped 76 | . . . . . . . . . 2 . 15 1 6 . . . 3 . . 2 . 2 . 8 . . . . 9 7 5 . 10 6 Cave-ins Triggered 2 | . . . . . . . . . . . . . . . . . . . . . . . . . . . . . 1 . . 1 . . Teleports 3 | . . . . . . . . . . . . . . . . . . . . . . . . . . . . . . 1 1 1 . . Exploration Rate (%) 60 | 4 98 99 71 101 97 25 54 50 79 54 45 96 38 24 84 62 47 72 64 96 55 44 95 55 61 58 60 47 50 78 21 50 70 25 Regions Visited 34 Branch Regions 21 Pre-discovered Areas 10 | . 1 1 1 1 . . . . 1 . . . . . 1 1 . . . . . . . . . . 3 . . . . . . . Known Exits Taken 24 | . . . . . 1 1 1 . 1 1 . . 1 1 1 1 1 1 1 1 1 . . 1 1 1 1 1 1 1 1 1 1 . Unknown Exits Taken 6 | 1 1 1 1 1 . . . 1 . . . . . . . . . . . . . . . . . . . . . . . . . . Scrap Searched 25 | . . 1 . 1 . . 1 3 . 1 . . . 1 4 2 . 3 2 . . . . . 3 1 . 2 . . . . . . Spaces Dug 590 | . . . . . 8 17 3 . 3 6 54 . 30 . . 7 60 3 15 . 1 83 . 67 18 . . . 63 20 45 28 30 29 Terrain Destroyed 754 | . . . . . 17 46 3 . 3 6 54 . 30 . . 9 60 24 15 . 1 86 66 67 35 . . . 63 20 62 28 30 29 Melee 413 | . . . . . 8 17 2 . 3 4 50 . 25 . . 3 42 2 5 . 1 67 . 55 7 . . . 43 17 5 17 22 18 Projectile 151 | . . . . . . . 1 . . 2 4 . 5 . . 6 18 2 10 . . 19 . 12 11 . . . 20 3 8 11 8 11 AOE 190 | . . . . . 9 29 . . . . . . . . . . . 20 . . . . 66 . 17 . . . . . 49 . . . Terrain Rammed . | . . . . . . . . . . . . . . . . . . . . . . . . . . . . . . . . . . . Walls Destroyed . | . . . . . . . . . . . . . . . . . . . . . . . . . . . . . . . . . . . Machines Disabled . | . . . . . . . . . . . . . . . . . . . . . . . . . . . . . . . . . . . Actions | -11 -10 -10 -10 -9 -8 -7 -7 -7 -7 -6 -6 -6 -6 -6 -6 -5 -5 -5 -5 -5 -4 -4 -4 -4 -4 -4 -4 -3 -3 -3 -3 -2 -2 -1 --------- Run | Scr Mat Min Exi Min Mat Fac Low Low Dat Pro Fac Was Fac Low Zio Pro Fac Upp Upp War Pro Fac Was Fac Upp Upp Zhi Pro Res Qua Sec Res Tes Acc Total 40960 | 42 893 877 428 811 2641 1350 395 362 766 497 2948 303 1727 203 1106 552 2330 831 664 1046 390 4041 545 2797 535 445 180 281 3164 1627 1194 2303 1329 1357 Wait 3982 | . 51 16 . 17 354 82 5 3 36 61 329 5 114 1 84 5 145 26 11 45 . 653 73 214 58 1 . . 771 241 176 75 150 180 Move 34542 | 32 718 773 420 719 1987 1082 377 352 649 415 2436 295 1544 200 1009 527 2050 792 628 976 383 3187 461 2433 437 443 172 281 2231 1291 918 2142 1084 1098 Hop 66 | . . . . . . . . . 2 . 12 1 4 . . . 3 . . 2 . 2 . 7 . . . . 9 7 5 . 6 6 Pick Up 224 | 4 21 5 2 7 45 18 . 1 10 3 11 1 6 . . 1 7 1 1 4 . 11 1 10 1 . 1 . 10 10 9 11 9 3 Fast Attach 103 | 6 13 2 . 1 11 7 . . 2 . 4 . 2 . 3 . 1 . . 3 . 7 . 4 1 . 3 . 9 8 6 6 2 2 Attach 84 | . . 2 . 1 9 5 . 1 13 3 5 . 1 . . . 4 1 . 2 . 4 . 3 2 . 1 . 7 5 8 4 1 2 Detach 57 | . 2 . . . 9 1 . 1 8 3 3 . 1 . . . 2 1 . 1 . 4 . 1 2 . 1 . 4 4 6 1 1 1 Swap 505 | . 35 29 2 22 86 46 5 . 5 . 30 . 14 2 2 7 28 5 6 1 3 44 3 22 8 . . . 27 11 15 7 20 20 Drop 257 | . 14 11 2 12 45 23 . . 27 1 12 1 6 . 3 1 6 . 1 4 . 9 2 13 3 . 2 . 10 15 10 12 9 3 Fire 457 | . 38 39 2 31 81 52 6 . . 6 12 . 6 . 5 6 20 3 10 . . 30 5 14 12 . . . 21 4 21 14 8 11 Melee 631 | . 1 . . . 11 26 2 4 10 5 76 . 29 . . 5 64 2 7 . 4 90 . 76 11 1 . . 59 31 20 30 36 31 Ram . | . . . . . . . . . . . . . . . . . . . . . . . . . . . . . . . . . . . Kick . | . . . . . . . . . . . . . . . . . . . . . . . . . . . . . . . . . . . Crush 3 | . . . . . 3 . . . . . . . . . . . . . . . . . . . . . . . . . . . . . Escape Stasis 33 | . . . . . . 8 . . . . 18 . . . . . . . . . . . . . . . . . 6 . . 1 . . Rewire 11 | . . . . . . . . . . . . . . . . . . . . 8 . . . . . . . . . . . . 3 . Trap 5 | . . . . 1 . . . . 4 . . . . . . . . . . . . . . . . . . . . . . . . . Miscellaneous . | . . . . . . . . . . . . . . . . . . . . . . . . . . . . . . . . . . . Route ------- -11/Scrapyard -10/Materials (discovered 5 exits: [*Mat x3] / *Min x2) -10/Mines (discovered 3 exits: [*Mat x2] / *Exi) -10/Exiles -9/Mines (discovered 2 exits: *Mat x2) -8/Materials (discovered 3 exits: *Fac x3) -7/Factory (discovered 5 exits: *Fac / *Sto x2 / *Low x2) -7/Lower Caves -7/Lower Caves -7/Data Miner -6/Proximity Caves -6/Factory (discovered 5 exits: *Fac x3 / Low x2) -6/Waste -6/Factory (discovered 3 exits: *Fac / *Low x2) -6/Lower Caves (discovered 2 exits: Low / *Zio) -6/Zion -5/Proximity Caves -5/Factory (discovered 8 exits: *Fac x4 / *Upp x2 / Ext x2) -5/Upper Caves -5/Upper Caves (discovered 2 exits: *Fac / *War) -5/Warlord -4/Proximity Caves -4/Factory (discovered 7 exits: *Res x4 / *Upp x2 / Arm) -4/Waste -4/Factory (discovered 7 exits: *Res x4 / *Upp x2 / Arm) -4/Upper Caves -4/Upper Caves -4/Zhirov -3/Proximity Caves -3/Research (discovered 5 exits: Res x3 / *Qua x2) -3/Quarantine (discovered 2 exits: *Res / *Sec) -3/Section 7 -2/Research (discovered 2 exits: *Acc / *Tes) -2/Testing -1/Access (discovered 2 exits: *Sur / Com) To Epsilon Eridani History --------- Turn | Location | Event 27 | -11/Scrapyard | Discovered new exit (range 16) 43 | -11/Scrapyard | Entered Materials 325 | -10/Materials | Build established: Mutant 457 | -10/Materials | Discovered new exit (range 15) 556 | -10/Materials | Discovered new exit (range 13) 672 | -10/Materials | Discovered new exit (range 7) 763 | -10/Materials | Discovered new exit (range 3) 959 | -10/Materials | Discovered new exit (range 7) 1078 | -10/Materials | Entered Mines 1138 | -10/Mines | Assisted by bots powering up and referring to "LRC-V3" 1165 | -10/Mines | Assembled infested the area 1552 | -10/Mines | Learned Materials security intel 1578 | -10/Mines | Learned 8 Materials zone layouts 1583 | -10/Mines | Found the Drone Emporium 1587 | -10/Mines | Found Prototype Device 1649 | -10/Mines | Discovered new exit (range 8) 1773 | -10/Mines | Learned location of Storage (-7) 1869 | -10/Mines | Discovered new exit (range 10) 1930 | -10/Mines | Joined a pair of Derelicts in attacking an 0b10 outpost 2074 | -10/Mines | Deemed a non-threat by the Exiles lab entrance 2074 | -10/Mines | Discovered new exit (range 5) 2124 | -10/Mines | Entered Exiles 2157 | -10/Exiles | Met 8R-AWN 2173 | -10/Exiles | Met EX-HEX 2224 | -10/Exiles | Learned location of Zion (-6) 2226 | -10/Exiles | Met EX-DEC 2327 | -10/Exiles | Build established: Scavenger-Mutant 2395 | -10/Exiles | Met EX-BIN 2412 | -10/Exiles | Aligned with FarCom system 2413 | -10/Exiles | Given EX-Vault access code 2439 | -10/Exiles | Opened EX-Vault 2463 | -10/Exiles | Warned to stay clear of 0b10 Research branches 2563 | -10/Exiles | Attacked by the Exiles 2583 | -10/Exiles | Discovered new exit (range 14) 2595 | -10/Exiles | Entered Mines 2720 | -9/Mines | Discovered new exit (range 14) 2865 | -9/Mines | Discovered new exit (range 3) 3062 | -9/Mines | Found a hidden stash of uninstalled traps 3216 | -9/Mines | Received a Rocket Launcher from a helpful Derelict 3562 | -9/Mines | Entered Materials 3562 | -8/Materials | Evolved 4 slots: Propulsion x1, Utility x3 3563 | -8/Materials | Identified exit to Factory 3660 | -8/Materials | Identified Bomb Drone Bay 3875 | -8/Materials | Build established: Hauler-Mutant 4804 | -8/Materials | Discovered exit to Factory (range 10) 6320 | -8/Materials | Repaired Flak Gun 6489 | -8/Materials | Repaired Flak Gun? 6578 | -8/Materials | Repaired Hrd. Medium Armor Plating? 6682 | -8/Materials | Repaired Flak Gun 6797 | -8/Materials | Central database locked down 6993 | -8/Materials | Entered Factory 6993 | -7/Factory | Accompanied by 1 ally 6993 | -7/Factory | Evolved 2 slots: Utility x2 7292 | -7/Factory | Discovered new exit (range 6) 7776 | -7/Factory | Identified exit to Storage 7776 | -7/Factory | Identified exit to Lower Caves 7868 | -7/Factory | Discovered new exit (range 7) 8498 | -7/Factory | Fabricated Xenon Bombardment Thruster? 8662 | -7/Factory | Fabricated Adv. Sensor Array (x1) 8714 | -7/Factory | Local fabrication network quarantined 8818 | -7/Factory | Garrison activated, responded to threat 8884 | -7/Factory | Destroyed 10 combat bots 8923 | -7/Factory | Entered Lower Caves 9163 | -7/Lower Caves | Spotted B-75 Beast 9233 | -7/Lower Caves | Identified exit to Lower Caves 9280 | -7/Lower Caves | Encountered a Warlord checkpoint 9481 | -7/Lower Caves | Entered another Lower Caves area 9553 | -7/Lower Caves | Encountered a Warlord checkpoint 9637 | -7/Lower Caves | Learned 12 Factory zone layouts 9952 | -7/Lower Caves | Discovered new exit (range 11) 9990 | -7/Lower Caves | Entered Data Miner 9990 | -7/Data Miner | Discovered new exit (range 6) 10069 | -7/Data Miner | Met Data Miner 10104 | -7/Data Miner | Learned location of Section 7 (-3) 10104 | -7/Data Miner | Acquired the access code to Warlord's prototype stash 10128 | -7/Data Miner | Received God Mode back door access code from Data Miner 10598 | -7/Data Miner | Destroyed Data Miner 10601 | -7/Data Miner | Data Conduit disabled 10603 | -7/Data Miner | Found Prototype Hackware 10676 | -7/Data Miner | Identified exit to Proximity Caves 10679 | -7/Data Miner | Entered Proximity Caves 10885 | -6/Proximity Caves | Learned Factory security intel 10910 | -6/Proximity Caves | Build established: Hacker-Mutant 10910 | -6/Proximity Caves | Discovered new exit (range 5) 10914 | -6/Proximity Caves | Identified exit to Factory 10914 | -6/Proximity Caves | Entered Factory 10914 | -6/Factory | Evolved 2 slots: Utility x2 10915 | -6/Factory | Identified exit to Lower Caves 10915 | -6/Factory | Identified exit to Factory 10916 | -6/Factory | Identified System Mapper 11064 | -6/Factory | Repaired Cesium-ion Thruster? 11230 | -6/Factory | Build established: Wizard-Mutant 11307 | -6/Factory | Discovered exit to Factory (range 5) 11406 | -6/Factory | Repaired Imp. Light Armor Plating 11642 | -6/Factory | Discovered exit to Factory (range 15) 11708 | -6/Factory | Central database locked down 11985 | -6/Factory | Fabricated Exp. Sensor Array? 12175 | -6/Factory | Fabricated Adv. Hacking Suite (x1) 12230 | -6/Factory | Fabricated Adv. Hacking Suite (x1) 12387 | -6/Factory | Sucked down chute 12387 | -6/Factory | Entered Waste 12387 | -6/Waste | The area was eerily silent 12420 | -6/Waste | 2 allies followed down the chute 12457 | -6/Waste | Discovered new exit (range 15) 12490 | -6/Waste | Identified exit to Factory 12495 | -6/Waste | Entered Factory 12495 | -6/Factory | Accompanied by 2 allies 12754 | -6/Factory | Discovered exit to Factory (range 6) 12938 | -6/Factory | Spotted B-75 Beast 13010 | -6/Factory | Repaired Broken Imp. Cesium-ion Thruster 13120 | -6/Factory | Fabricated Adv. System Shield? 13125 | -6/Factory | Fabricated Biomechanical Wings? 13132 | -6/Factory | Fabricated Biomechanical Wings? 13190 | -6/Factory | Fabricated Adv. System Shield? 13247 | -6/Factory | Entered Lower Caves 13248 | -6/Lower Caves | A Derelict revealed a hidden shortcut to a safe place 13250 | -6/Lower Caves | Identified exit to Zion 13257 | -6/Lower Caves | Identified exit to Lower Caves 13311 | -6/Lower Caves | Build established: Wizard-Sprinter 13316 | -6/Lower Caves | Entered Zion 13335 | -6/Zion | Discovered new exit (range 15) 13340 | -6/Zion | Given A8's code to call for help 13379 | -6/Zion | Given the Hacking Drone Bay 13398 | -6/Zion | Learned Factory emergency access door positions 13436 | -6/Zion | Learned location of Armory (-4) 13488 | -6/Zion | Found Prototype Device 13488 | -6/Zion | Identified Phasing AFG 13526 | -6/Zion | Received a visual enhancement algorithm 13746 | -6/Zion | Identified exit to Proximity Caves 13748 | -6/Zion | Entered Proximity Caves 13864 | -5/Proximity Caves | Learned Factory terminal intel 13932 | -5/Proximity Caves | Enhanced Grunt warped into view, answering call for help 13936 | -5/Proximity Caves | Enhanced Grunt warped into view, answering call for help 13937 | -5/Proximity Caves | Discovered exit to Factory (range 8) 13959 | -5/Proximity Caves | Entered Factory 13959 | -5/Factory | Evolved 2 slots: Utility x2 13961 | -5/Factory | Loaded intel: 22 terminal locations 14004 | -5/Factory | Fabricated Exp. Signal Interpreter (x1) 14040 | -5/Factory | Identified exit to Upper Caves 14040 | -5/Factory | Identified exit to Extension 14398 | -5/Factory | Discovered new exit (range 12) 14402 | -5/Factory | Identified exit to Factory 14559 | -5/Factory | Local fabrication network quarantined 14572 | -5/Factory | Fabricated Adv. Hacking Suite (x1) 14788 | -5/Factory | Repaired Broken Cld. Nuclear Pulse Thruster 15024 | -5/Factory | Entered Upper Caves 15024 | -5/Upper Caves | Accompanied by 1 ally 15040 | -5/Upper Caves | Encountered a Warlord checkpoint 15189 | -5/Upper Caves | Learned Factory security intel 15190 | -5/Upper Caves | Learned Factory terminal intel 15296 | -5/Upper Caves | Discovered new exit (range 15) 15325 | -5/Upper Caves | Identified exit to Upper Caves 15326 | -5/Upper Caves | Entered another Upper Caves area 15332 | -5/Upper Caves | Discovered exit to Factory (range 11) 15402 | -5/Upper Caves | Encountered a Warlord checkpoint 15551 | -5/Upper Caves | Discovered new exit (range 7) 15552 | -5/Upper Caves | Identified exit to Warlord 15588 | -5/Upper Caves | Entered Warlord 15609 | -5/Warlord | System corruption cleaned by Quarantine Array 15617 | -5/Warlord | Discovered new exit (range 9) 15812 | -5/Warlord | Warlord's base attacked by MAIN.C 15820 | -5/Warlord | Met Warlord 15824 | -5/Warlord | Opened Warlord's prototype stash 15830 | -5/Warlord | Found Prototype Device 15830 | -5/Warlord | Identified Exp. Cloaking Device 15841 | -5/Warlord | Found Prototype Processor 15960 | -5/Warlord | Opened side exit 15968 | -5/Warlord | Identified exit to Proximity Caves 15970 | -5/Warlord | Entered Proximity Caves 16098 | -4/Proximity Caves | Discovered exit to Factory (range 5) 16108 | -4/Proximity Caves | Entered Factory 16108 | -4/Factory | Evolved 2 slots: Propulsion x1, Utility x1 16110 | -4/Factory | Loaded intel: 20 terminal locations 16413 | -4/Factory | Discovered new exit (range 6) 16414 | -4/Factory | Identified exit to Upper Caves 16417 | -4/Factory | Identified exit to Armory 16417 | -4/Factory | Identified exit to Research 16553 | -4/Factory | Build established: Wizard-Scout 16992 | -4/Factory | Repaired Cld. Nuclear Pulse Thruster 17001 | -4/Factory | Build established: Wizard-Sprinter 17026 | -4/Factory | Identified Exp. Core Analyzer 17284 | -4/Factory | Fabricated Mni. Fusion Reactor (x1) 17295 | -4/Factory | Repaired Broken Plasma Lance? 17363 | -4/Factory | Fabricated Biomechanical Wings (x1) 17440 | -4/Factory | Fabricated Biomechanical Wings (x1) 17520 | -4/Factory | Fabricated Biomechanical Wings (x1) 17561 | -4/Factory | Repaired Electron Diverter 17602 | -4/Factory | Local fabrication network quarantined 17975 | -4/Factory | Found Powered Armor 18054 | -4/Factory | Repaired Biomechanical Wings 18123 | -4/Factory | Manually triggered Chute Trap 18123 | -4/Factory | Sucked down chute 18123 | -4/Factory | Entered Waste 18141 | -4/Waste | Spotted C-40 Crusher 18141 | -4/Waste | Spotted C-40 Crusher 18168 | -4/Waste | Spotted C-40 Crusher 18175 | -4/Waste | Spotted C-40 Crusher 18177 | -4/Waste | Spotted C-40 Crusher 18186 | -4/Waste | Warlord forces began an assault 18215 | -4/Waste | Allies destroyed C-40 Crusher 18218 | -4/Waste | Destroyed C-40 Crusher 18228 | -4/Waste | Allies destroyed C-40 Crusher 18260 | -4/Waste | Spotted C-40 Crusher 18282 | -4/Waste | Discovered new exit (range 12) 18347 | -4/Waste | Identified exit to Factory 18347 | -4/Waste | Entered Factory 18483 | -4/Factory | Repaired Adv. Reaction Control System 18578 | -4/Factory | Discovered exit to Research (range 16) 18694 | -4/Factory | Fabricated Exp. Terrain Scan Processor? 18953 | -4/Factory | Discovered exit to Research (range 15) 19194 | -4/Factory | Discovered exit to Research (range 14) 19418 | -4/Factory | Fabricated Biomechanical Wings (x1) 19500 | -4/Factory | Fabricated Centrium Leg? 19551 | -4/Factory | Entered Upper Caves 19563 | -4/Upper Caves | Identified exit to Upper Caves 19737 | -4/Upper Caves | Spotted B-86 Titan 19809 | -4/Upper Caves | Entered another Upper Caves area 19923 | -4/Upper Caves | Discovered new exit (range 3) 19924 | -4/Upper Caves | Identified exit to Zhirov 19941 | -4/Upper Caves | Entered Zhirov 19941 | -4/Zhirov | Discovered new exit (range 3) 19947 | -4/Zhirov | Met Zhirov 19952 | -4/Zhirov | Learned location of Quarantine (-3) 19952 | -4/Zhirov | Learned location of Testing (-2) 19952 | -4/Zhirov | Learned location of Command (-1) 19955 | -4/Zhirov | Zhirov requested help retrieving the SGEMP Prototype 19961 | -4/Zhirov | Found Alien Artifact 19961 | -4/Zhirov | Identified Integrated Reactor 19961 | -4/Zhirov | Installed Integrated Reactor, increased core energy generation (+10) 19981 | -4/Zhirov | Found Alien Artifact 19998 | -4/Zhirov | Identified exit to Proximity Caves 19999 | -4/Zhirov | Entered Proximity Caves 20061 | -3/Proximity Caves | Discovered exit to Research (range 11) 20078 | -3/Proximity Caves | Entered Research 20078 | -3/Research | Evolved 2 slots: Propulsion x2 20154 | -3/Research | Identified exit to Quarantine 20195 | -3/Research | Identified Transdimensional Reconstructor 20234 | -3/Research | Identified exit to Research 20592 | -3/Research | Crushed by falling debris 20623 | -3/Research | Lost 3 parts (3u) 20683 | -3/Research | Fabricated Exp. Signal Interpreter (x1) 20741 | -3/Research | Fabricated Imp. System Restoration Module (x1) 20817 | -3/Research | Fabricated Exp. Utility Shielding (x1) 20893 | -3/Research | Fabricated Exp. Utility Shielding (x1) 20969 | -3/Research | Fabricated Exp. Propulsion Shielding (x1) 21171 | -3/Research | Local fabrication network quarantined 21184 | -3/Research | Fabricated Exp. Melee Analysis Suite (x1) 21556 | -3/Research | Repaired Exp. Sensor Array 21595 | -3/Research | Repaired Electron Diverter 21663 | -3/Research | Entered Quarantine 21746 | -3/Quarantine | Found Alien Slashing Weapon 21746 | -3/Quarantine | Identified Sigix Broadsword 21776 | -3/Quarantine | Repaired Adv. Transmission Jammer 21781 | -3/Quarantine | Found Alien Artifact 21947 | -3/Quarantine | Identified Core Reset Matrix 21992 | -3/Quarantine | Found Alien Artifact 22029 | -3/Quarantine | Found Alien Artifact 22029 | -3/Quarantine | Identified Dimensional Node Initializer 22029 | -3/Quarantine | Initialized slip node 22035 | -3/Quarantine | Found Alien Artifact 22035 | -3/Quarantine | Identified Hpw. Transdimensional Reconstructor 22035 | -3/Quarantine | Warped through subspace to slip node 22037 | -3/Quarantine | Found Hpw. Transdimensional Reconstructor 22039 | -3/Quarantine | Identified Phase Armor 22047 | -3/Quarantine | Found Transdimensional Reconstructor 22101 | -3/Quarantine | Found Alien Artifact 22337 | -3/Quarantine | Spotted Fortress 22354 | -3/Quarantine | Discovered new exit (range 6) 22355 | -3/Quarantine | Identified exit to Section 7 22355 | -3/Quarantine | Entered Section 7 22412 | -3/Section 7 | Found Prototype Device 22554 | -3/Section 7 | Identified Exp. Thermal Shield 22554 | -3/Section 7 | Identified Subatomic Replicator 22628 | -3/Section 7 | Adv. Hacking Suite fried by hacking feedback 22652 | -3/Section 7 | Warped through subspace 22786 | -3/Section 7 | Repaired Exp. Sensor Array 22838 | -3/Section 7 | Discovered exit to Research (range 13) 22868 | -3/Section 7 | Repaired Exp. Propulsion Shielding? 22888 | -3/Section 7 | Repaired Cld. Field Propulsion Drive? 22915 | -3/Section 7 | Entered Research 22915 | -2/Research | Warlord forces began assault on 0b10 22915 | -2/Research | Evolved 2 slots: Utility x2 22961 | -2/Research | Fabricated Femtoactuators? 22966 | -2/Research | Discovered new exit (range 15) 22977 | -2/Research | Met up with Warlord 23006 | -2/Research | Crushed by falling debris 23025 | -2/Research | Research machine network offline 23025 | -2/Research | Found Quantum Capacitor 23110 | -2/Research | Identified exit to Testing 23283 | -2/Research | Borebot progress halted 23412 | -2/Research | Borebot progress halted 23528 | -2/Research | Discovered new exit (range 6) 23529 | -2/Research | Identified exit to Access 23568 | -2/Research | Warped through subspace 23587 | -2/Research | Borebot progress halted 23625 | -2/Research | Local fabrication network quarantined 23647 | -2/Research | Entered Testing 23654 | -2/Testing | Found Exp. Core Analyzer 23719 | -2/Testing | Fabricated Exp. Terrain Scanner (x1) 23790 | -2/Testing | Repaired Lyr. Medium Armor Plating 23950 | -2/Testing | Spotted Striker 23952 | -2/Testing | Spotted Striker 23953 | -2/Testing | Spotted PG-OURGPGNT13 23956 | -2/Testing | Rewired PG-OURGPGNT13 23986 | -2/Testing | Found Prototype Launcher 23993 | -2/Testing | Identified Z-bomb Delivery System 24017 | -2/Testing | Build established: Wizard-Ninja 24205 | -2/Testing | Entered Access 24205 | -1/Access | Evolved 2 slots: Utility x2 24209 | -1/Access | Identified exit to Surface 24209 | -1/Access | Identified exit to Command 24279 | -1/Access | Fabricated Exp. Signal Interpreter (x1) 24392 | -1/Access | Found Antimissile System 24408 | -1/Access | Repaired Mni. Fusion Reactor? 24429 | -1/Access | Repaired Biomechanical Wings 24446 | -1/Access | Repaired Lyr. Medium Armor Plating 24764 | *** | Escaped! Last Messages --------------- 24613_ Connecting with Terminal... 24637_ Sneak attack on W-44 Eye. 24637_ Destroyed Lgt. Antimatter Reactor. 24639_ W-44 Eye destroyed. 24640_ Acquired 27 matter. 24668_ U-05 Engineer builds a Wall. 24705_ ALERT: Rogue bot located, Programmers report to Access Zone 6F. 24708_ U-05 Engineer builds a Wall. 24711_ Connecting with Terminal... 24758_ K-01 Serf cleans the Terminal. 24758_ Connecting with Terminal... >>Trojan(Track) Trojan loaded successfully. Testing... Tracking enabled and active. 24761_ K-01 Serf cleans the Terminal. 24762_ Connecting with Terminal... >>Open Sealed Barrier opened. 24763_ The Access Shell folds into the floor. Map ----- +----------------------------------------------------+ | ? ? ? #?# ## ? ? ?# # # | | ? ? ### ## ## # " # | | ? ### ## ## [ # """ # | | ??? ### ## ?# " """ # | | #?#?##?#### ## ? ## # " # | | ?? ? ?## #? ? ## # # | | ? ? ## k## ?## # # = | | # ###+#############+######+########### | | ? + T" w u p p kk | | ? ? # "" p | | ? ?"? # ##########+#############+##########? | | ??""??? ## ### ?? ? ######### | | ? ? ???# ### ? ? ######### | | ######??### #?# # # | | ?####?#???# ### # ? # | | ?####?#?### ###? ? ? # | | ??###??#### #?# ? ? # ? # | | #####??#### #######?##################### | | ?######### ############################# | | ? #?##???## ####### ##################### | | # ######### """T""" """" # | | #####??#?## """ """ """" BB # | | #? ? ## k """" BB? ###+##### | | #??? ? ## """" | | # ? ## "" """" | | #? " ## @" """" | | + ??""?? ?#u """" | | # ?""???## """" BB ######### | | ? ?? ## """" BB ######### | | # ? ?? ## """" ######### | | # ??? ?## ####### ############################# | | ##?#?###### #########?########################### | | ### #???#?# ##?#?##???###??###################### | | #?#?##??### ?#?######## ?######## | | ##? ??##### ?#####??### ? ######?# | | ?## #???### ##?#####?## ######## | | #?###??#?## ?####?####? #####?## | | ? ?? ## #?#######?# ? ######## " | | ? ? ?? ?#? ?#?##??###?# ? ######## " | | ? ??? ???# ?##?##?#???###?###?#?+??###?##?## " | | ???"?????+? Y ???? ??? ? ? ?? ? #### " | | ????" ?# ?????? ?? k k ? #### " | | ?? ??????? ?#???????########?+#######? #### | | ? ?? ? ??## ????#?#?###?#? ? ? ? ## ##?# | | ?? ?? ?? #????#?##?#?##?## ? ?## #### | | ???????????? ??##??##??### ?? """?"?k ## ?######## | | ?? ?? ??????##?#????##? ?"""?? ?## ####### | | ???????? ?? ??##???##?#?#?? """""? ?+ | | ?? ??? ? #??###??????##?? ?"?"? ??## ####### | | ????????? #? ??#????#?##?#? ?"""" ?#? ##?#?## | +----------------------------------------------------+ Best States ------------- Heat Dissipation 52 Energy Generation 37 Energy Capacity 290 Matter Stores 500 Matter Capacity 500 Sight Range 22 Robot Scan Range 30 Terrain Scan Range 30 Terrain Scan Density 1010 Jamming Range 16 Cloak Strength 4 Armor Coverage 625 Propulsion Shielding 90 Utility Shielding 90 Melee Speed Boost 50 Evasion (%) 65 Targeting Accuracy 8 Melee Accuracy 12 Recoil Reduction 3 Offensive Hacking 90 Defensive Hacking 39 Item Schematics ----------------- Lrg. Storage Unit | -8/Materials | Scanalyzed Med. Storage Unit | -8/Materials | Scanalyzed Adv. Sensor Array | -7/Factory | Hacked Adv. Signal Interpreter | -7/Factory | Scanalyzed Hacking Suite | -7/Factory | Scanalyzed Xenon Bombardment Thruster | -7/Factory | Scanalyzed Combat Drone Bay | -7/Data Miner | Free Lgt. Regenerative Plating | -7/Data Miner | Free Cmb. Gravmag System | -7/Data Miner | Free Exp. Sensor Array | -7/Data Miner | Free Exp. Terrain Scanner | -7/Data Miner | Free Exp. Targeting Computer | -7/Data Miner | Free Tactical Coordination Suite | -7/Data Miner | Free Exp. ECM Suite | -7/Data Miner | Free Plasma Sword | -7/Data Miner | Free Kinetic Spear | -7/Data Miner | Free Imp. System Shield | -6/Factory | Hacked Adv. Terrain Scan Processor | -6/Factory | Hacked Adv. Hacking Suite | -6/Factory | Hacked Gravity Neutralizing Apparatus | -6/Factory | Scanalyzed Exp. Signal Interpreter | -6/Factory | Hacked Biomechanical Wings | -6/Factory | Hacked Adv. System Shield | -6/Factory | Hacked Exp. Propulsion Shielding | -6/Factory | Hacked Exp. Utility Shielding | -6/Factory | Hacked Imp. Cesium-ion Thruster | -6/Factory | Scanalyzed Mic. Fission Core | -5/Factory | Hacked Exp. Heat Sink | -5/Factory | Scanalyzed Cld. Nuclear Pulse Thruster | -5/Factory | Scanalyzed Fusion Compressor | -5/Factory | Hacked Mni. Fusion Reactor | -4/Factory | Hacked Plasma Lance | -4/Factory | Scanalyzed Exp. Terrain Scan Processor | -4/Factory | Hacked Exp. Melee Analysis Suite | -4/Factory | Hacked Imp. System Restoration Module | -4/Factory | Hacked Assault Drone Bay | -4/Zhirov | Free Exp. Optical Array | -4/Zhirov | Free Imp. Arc Thrower | -4/Zhirov | Free Exp. Coolant Injector | -3/Research | Scanalyzed Femtoactuators | -3/Quarantine | Hacked Exp. Armor Integrity Analyzer | -3/Quarantine | Hacked EM Dispersion Field | -3/Quarantine | Hacked Exp. Shield Generator | -3/Quarantine | Hacked Robot Schematics ------------------ S-27 Virus | -7/Data Miner | Free G-50 Soldier | -7/Data Miner | Free L-41 Fighter | -7/Data Miner | Free H-66 Slayer | -7/Data Miner | Free I-36 Angel | -7/Data Miner | Free Fabricated ------------ Xenon Bombardment Thruster | x2 | -7/Factory Adv. Sensor Array | x1 | -7/Factory Exp. Sensor Array | x1 | -6/Factory Adv. Hacking Suite | x1 | -6/Factory Adv. Hacking Suite | x1 | -6/Factory Adv. System Shield | x1 | -6/Factory Biomechanical Wings | x1 | -6/Factory Biomechanical Wings | x1 | -6/Factory Adv. System Shield | x1 | -6/Factory Exp. Signal Interpreter | x1 | -5/Factory Adv. Hacking Suite | x1 | -5/Factory Mni. Fusion Reactor | x1 | -4/Factory Biomechanical Wings | x1 | -4/Factory Biomechanical Wings | x1 | -4/Factory Biomechanical Wings | x1 | -4/Factory Exp. Terrain Scan Processor | x1 | -4/Factory Biomechanical Wings | x1 | -4/Factory Centrium Leg | x1 | -4/Factory | Preloaded Exp. Signal Interpreter | x1 | -3/Research Imp. System Restoration Module | x1 | -3/Research Exp. Utility Shielding | x1 | -3/Research Exp. Utility Shielding | x1 | -3/Research Exp. Propulsion Shielding | x1 | -3/Research Exp. Melee Analysis Suite | x1 | -3/Research Femtoactuators | x1 | -2/Research Exp. Terrain Scanner | x1 | -2/Testing Exp. Signal Interpreter | x1 | -1/Access Alien Tech Used ----------------- Integrated Reactor Sigix Broadsword Dimensional Node Initializer High-powered Transdimensional Reconstructor Phase Armor Transdimensional Reconstructor Achievements -------------- None Challenges ------------ None Game ------ Seed LargeVisualMaul Manual? 0 Play Time 10:24:10 Cumulative 399.8 hours Start 2021.09.16 @ 02:02:28 End 2021.09.19 @ 22:52:31 Sessions 12 Manual Loads 0 Difficulty Rogue Special Mode None Game No. 82 Rogue 46 Adventurer 4 Explorer 32 Win Type 0 Total 30 Types 12/5/4/2/2/3/1/0/1 Lore% 91 Gallery% 89 Achievement% 86 Wizard Run 0 Options --------- ASCII 0 Keyboard 1 Movement Vi Keybinds 0 Fullscreen 2 Font 24/Proggy Map View 76x50 Tactical HUD 1 Map Filters NONE Filters NONE Steam 1 RUN: 5eea1af5-3c78-4e4c-a484-1d92dee5716b